Transaction Date,Merchant Name,Cost Code Description,Subjective Description,Net Amount
26/01/2023,CROSSROADS TRUCK BUS L,Fleet Maintenance,Dir Cost-Spare Parts,"6,694.92"
26/01/2023,LAND REGISTRY ECOM CCC,Fire Safety Protection,Legal Expenses,3
26/01/2023,LAND REGISTRY ECOM CCC,Fire Safety Protection,Legal Expenses,3
26/01/2023,LAND REGISTRY ECOM CCC,Fire Safety Protection,Legal Expenses,3
26/01/2023,LAND REGISTRY ECOM CCC,Fire Safety Protection,Legal Expenses,3
26/01/2023,LAND REGISTRY ECOM CCC,Fire Safety Protection,Legal Expenses,3
26/01/2023,WWW.LOCAL.GOV.UK,CFO/CFO'S Secretary,Conference Expenses,948
26/01/2023,LAND REGISTRY ECOM CCC,Fire Safety Protection,Legal Expenses,6
26/01/2023,LAND REGISTRY ECOM CCC,Fire Safety Protection,Legal Expenses,3
26/01/2023,LAND REGISTRY ECOM CCC,Fire Safety Protection,Legal Expenses,6
26/01/2023,WWW.CIPS.ORG,Procurement,Prof Subs Fees,145
26/01/2023,TESCO STORES 2617,Recruits,Food,71.85
26/01/2023,LAND REGISTRY ECOM CCC,Fire Safety Protection,Legal Expenses,6
25/01/2023,HADFIELDS,Cleckheaton,Training Meals,61.15
25/01/2023,TESCO STORES 6743,ELS,National Resilience,8.35
25/01/2023,LAND REGISTRY ECOM CCC,Fire Safety Protection,Legal Expenses,6
25/01/2023,NISBETS PLC,Bradford District Commander,Domestic Equ Purch,182.08
25/01/2023,SUBWAY 27995 BUTT LN-P,National Resilience,Training Meals,73.82
25/01/2023,ASDA GROCERIES ONLINE,Youth Intervention Team,Food,73.4
25/01/2023,WWW.WETHERBYWHALER.CO.,Leeds,Training Meals,90.7
25/01/2023,NISBETS PLC,Bradford DFSO,Domestic Equ Purch,54.92
25/01/2023,HUDDERSFIELD DECORATOR,Huddersfield,Self Help Scheme,81.72
24/01/2023,WWW.SCREWFIX.COM,Corporate Management Support,Furniture and fittings ,44.3
24/01/2023,AMZNMKTPLACE AMAZON.CO,Training Delivery,Operational Equ Pch,17.48
24/01/2023,EBAY O 08-09621-51099,West Yorkshire Fire & Rescue Service,Operational Equ Pch,352.18
24/01/2023,LAND REGISTRY ECOM CCC,Fire Safety Protection,Legal Expenses,6
24/01/2023,AMZNMKTPLACE,Fire Safety Prevention,Cat Gen Equ Purch,120.84
23/01/2023,SCREWFIX DIR LTD,Garforth,Self Help Scheme,5.99
23/01/2023,V LOGAN LTD,Training Delivery,Food,5.09
23/01/2023,MULTIPOINTLOCKS,Operations Equipment,Operational Equ Pch,168
23/01/2023,CURRYS BUSINESS,Wetherby Day Crewing,Furniture,49.95
23/01/2023,REMARKABLE,Corporate Diversity,Access to work purch,358
23/01/2023,WWW.GARDENTRACTORSPARE,Operations Equipment,Operational Equ Pch,123.3
22/01/2023,AMZNMKTPLACE AMAZON.CO,Training Delivery,Operational Equ Pch,20.81
23/01/2023,SCREWFIX DIR LTD,Keighley,General Rep & Maint,4.81
20/01/2023,BENTLEYS FISHERIES,National Resilience,Training Meals,76.9
20/01/2023,CONNECT DISTRIBUTION S,Huddersfield,Domestic Equ Purch,23.31
20/01/2023,AMZNMKTPLACE,Cleckheaton,Cat Gen Equ Purch,19.83
20/01/2023,MOTO TAMWORTH,National Resilience,Food,23.28
21/01/2023,SHELL WOODHEAD ROAD,Fleet Maintenance,Ad-Blue purchase,13.89
20/01/2023,TAMWORTH PRET A MANGER,National Resilience,Food,34.02
20/01/2023,WWW.PARRS.CO.UK,Halifax,Station Development Equipment,126.49
19/01/2023,SCREWFIX DIR LTD,Garforth,Operational Equ Pch,22.49
19/01/2023,THE GREYHOUND,Leeds,Training Meals,95.7
19/01/2023,CO OPERATIVE FOOD,National Resilience,Emergency Food,50.16
19/01/2023,GREGGS RIVINGTON NORTH,Training Delivery,Training Meals,11
19/01/2023,GREGGS RIVINGTON NORTH,Training Delivery,Food,12.5
19/01/2023,BARNSLEY MBC,Finance Section,Subsistence Allowncs,2.6
19/01/2023,WWW.SCREWFIX.COM,Hunslet,Self Help Scheme,14.99
19/01/2023,HELLOPRINT UNITED KING,Positive Action,Publty/Promtn/Media,104.88
20/01/2023,123 REG LTD 003878422,Local Resilience Forum Pilot,Publty/Promtn/Media,86.34
19/01/2023,GREGGS RIVINGTON NORTH,Leeds,Food,8.2
19/01/2023,THE GREYHOUND,Leeds,Food,44.85
19/01/2023,MOTO TROWELL SOUTH GRE,National Resilience,Food,36.65
19/01/2023,AMZNMKTPLACE,Procurement,Cleaning Consumables,10
19/01/2023,AMZNMKTPLACE,Property Services,Minor works ,8.32
19/01/2023,TESCO STORES 2617,Recruits,Food,90.16
19/01/2023,SUBWAY 64604 HARTSHEAD,Leeds,Training Meals,36.06
19/01/2023,TABLE TABLE41019105,National Resilience,Emergency Food,8.32
18/01/2023,REALLY USEFUL STORGE,West Yorkshire Fire & Rescue Service,Clothing,351.19
18/01/2023,LISTER'S ARMS,Rothwell,Food,13.96
18/01/2023,SP CHILLCHEATER,Recruits,Clothing,279.66
18/01/2023,AMZNMKTPLACE,Employment Services,Stationery,4.15
18/01/2023,WORKWEAR EXPRESS,Stores,Clothing,957
18/01/2023,THE INSTITUTION OF FIR,Bradford District Commander,Prof Subs Fees,146
18/01/2023,CO-OP GROUP 014449,Training Delivery,Food,16.4
18/01/2023,CO-OP GROUP 014449,Training Delivery,Food,22.18
18/01/2023,MOTOSAVE LTD,Morley,Operational Equ Pch,4.99
18/01/2023,HANDYMANS SUPPLIES (MO,Morley,Operational Equ Pch,8.95
18/01/2023,SAFETYBUYER.COM,West Yorkshire Fire & Rescue Service,Clothing,178.8
18/01/2023,SFS GROUP FASTENING TE,Fleet Maintenance,Workshop Equipment,265.75
18/01/2023,ACCESSIBE.COM,Corporate Communications,Subscriptions,126.06
18/01/2023,CO-OP GROUP 014449,Training Delivery,Training Meals,11.35
16/01/2023,PREMIER INN,ESMCP AP Mobalisation ,Public Transport,153.5
16/01/2023,TVLICENSING.CO.UK,Wetherby Day Crewing,Subscriptions,159
17/01/2023,NATIONAL SHOWER SPARES,Wetherby,General Rep & Maint,10.71
17/01/2023,TOOLSTATION LTD,Huddersfield,Operational Equ Pch,9.16
16/01/2023,CARTRIDGEPEOPLE.COM,Fleet Maintenance,Consumables-Veh Rep,62.21
16/01/2023,CHARTERED INSTITUTE OF,Fire Legal,Prof Subs Fees,367
16/01/2023,RACE THE DRAGON LTD,Bradford District Commander,Publty/Promtn/Media,170
16/01/2023,SCREWFIX BINGLEY CROSS,Bingley,Admin/Office Equ Pch,9.99
16/01/2023,AMZNMKTPLACE,South Kirkby,Station Development Equipment,14.67
16/01/2023,AMZNMKTPLACE,Service Delivery Centre,Admin/Office Equ Pch,41.66
16/01/2023,AMZNMKTPLACE,South Kirkby,Station Development Equipment,11.64
16/01/2023,LNER WEB SALES,ESMCP AP Mobalisation ,Conference Expenses,93.4
16/01/2023,AMZNMKTPLACE,Wetherby,Station Development Equipment,4.54
14/01/2023,WWW.SCREWFIX.COM,Halifax,Self Help Scheme,67.03
13/01/2023,AMZNMKTPLACE,Fleet Management,Stationery,5.82
13/01/2023,FIRE PROTECTION ONLINE,Property Services,General Rep & Maint,64.31
14/01/2023,AMZNMKTPLACE AMAZON.CO,Normanton Close Call House,Furniture,9.16
16/01/2023,AMZNMKTPLACE,Wetherby,Station Development Equipment,7.49
13/01/2023,AMZNMKTPLACE,Local Resilience Forum Pilot,ICT Spares & Repairs,57.74
16/01/2023,AMZNMKTPLACE,South Kirkby,Station Development Equipment,25.78
16/01/2023,AMZNMKTPLACE,Moortown,Station Development Equipment,76.64
13/01/2023,TESCO STORES 2617,Recruits,Food,87.75
14/01/2023,AMZNMKTPLACE,Local Resilience Forum Pilot,ICT Spares & Repairs,449.18
16/01/2023,AMZNMKTPLACE,Local Resilience Forum Pilot,ICT Spares & Repairs,91.91
16/01/2023,AMZNMKTPLACE,Local Resilience Forum Pilot,ICT Spares & Repairs,29.98
12/01/2023,WWW.SCREWFIX.COM,Hunslet,General Rep & Maint,16.66
12/01/2023,CROSSROADS TRUCK BUS L,Fleet Maintenance,Dir Cost-Spare Parts,142.48
12/01/2023,SCREWFIX DIR LTD,Calderdale District Commander,Training Equ Purch,6.59
12/01/2023,WWW.CIPS.ORG,Procurement,Prof Subs Fees,273
12/01/2023,LIVERPOOL CC PARKING S,Secondments,Vhcle Leas Misc Exp,12
12/01/2023,ALLIANCE DISPOSABLES,Property Services,General Rep & Maint,37.44
12/01/2023,BRAMLEY IRONMONGERS AN,Training Delivery,Training Equ Purch,3
12/01/2023,GO OUTDOORS RETAIL LIM,West Yorkshire Fire & Rescue Service,Furniture,600
13/01/2023,AMZNMKTPLACE,Fleet Management,Stationery,20.56
12/01/2023,AMZNMKTPLACE,Service Delivery Centre,General Rep & Maint,19.53
12/01/2023,TESCO STORE,Training Delivery,Food,3.2
11/01/2023,VENUS FOODS,Leeds,Emergency Food,72.4
11/01/2023,43032670 COSTA COFFEE,Secondments,Food,3.5
11/01/2023,SCREWFIX DIR LTD,Fleet Maintenance,Ad-Blue purchase,57.47
11/01/2023,TRAINLINE,CFO/CFO'S Secretary,Public Transport,34.64
11/01/2023,WWW.SCREWFIX.COM,Otley,General Rep & Maint,10.08
08/01/2023,REGATTA,Recruits,Training Delivery Tn,198.95
11/01/2023,THE HOSE MASTER,Dewsbury New,Self Help Scheme,145.32
11/01/2023,DECATHLON UK LIMITED,Health & Safety,Wellbeing,79.98
11/01/2023,DECATHLON UK LIMITED,Health & Safety,Wellbeing,79.98
11/01/2023,SP YORK FITNESS UK,Health & Safety,Wellbeing,249.99
11/01/2023,BOWLING GREEN,National Resilience,Training Meals,49.75
10/01/2023,TFL TRAVEL CH,Finance Section,Public Transport,5
10/01/2023,SUMUP   JAYNES SANDWIC,Bingley,Food,53.8
10/01/2023,REALLY USEFUL STORGE,Stores,Stationery,34.39
10/01/2023,HARTLEYS BAKERS AND CO,Rastrick,Training Meals,71.65
10/01/2023,FITNESS SUPERSTORE,Health & Safety,Wellbeing,94.94
10/01/2023,COSTCO ONLINE UK LIMIT,Stores,Emergency Food,399.82
11/01/2023,AMZNMKTPLACE,Fleet Maintenance,Consumables-Veh Rep,30.94
10/01/2023,SP CHILLCHEATER,Recruits,Clothing,583
10/01/2023,43037505 COSTA COFFEE,Finance Section,Subsistence Allowncs,4.45
09/01/2023,SP OVERBOARD,Stores,Clothing,145.62
09/01/2023,SP PAPER CUPS DIRECT,Stores,Emergency Food,384.25
09/01/2023,SP HOTDRINKS,Stores,Emergency Food,366
09/01/2023,WWW.NSWATERSPORTS.CO.U,Stores,Clothing,215.32
09/01/2023,WWW.NSWATERSPORTS.CO.U,Stores,Clothing,87.8
09/01/2023,HANDRAIL SAFETY SYSTEM,Otley,General Rep & Maint,103.25
09/01/2023,WWW.PROTEX.COM,Fleet Maintenance,Consumables-Veh Rep,71.65
09/01/2023,WWW.TROPICANAFITNESS.C,Stores,Emergency Food,679.52
09/01/2023,TESCO STORES 2617,Recruits,Food,72.4
06/01/2023,BFC,Hunslet,Dir Cost-Oil & Lubes,6
06/01/2023,SCREWFIX BINGLEY CROSS,National Resilience,National Resilience,18.32
06/01/2023,ASDA  STORES 5869,Shipley,Stationery,16.19
08/01/2023,BREWERS FAYRE 41010340,Calderdale District Commander,Subsistence Allowncs,47.04
08/01/2023,SNOOTY FOX TAVERN,Todmorden,Training Meals,63.88
08/01/2023,AMZNMKTPLACE,ICT,ICT Spares & Repairs,53.32
06/01/2023,SCREWFIX DIR LTD,Fairweather Green,Admin/Office Equ Pch,43.26
06/01/2023,ZETTLE_ WOBBLE BOX SER,Fleet Management,Rep-Ext Contractors,265
08/01/2023,BREWERS FAYRE 41010340,Calderdale District Commander,Subsistence Allowncs,7.95
06/01/2023,TOOLSTATION UK,Stanningley,Domestic Equ Purch,65.32
06/01/2023,SHOULDER OF MUTTON,Calderdale District Commander,Subsistence Allowncs,27.6
08/01/2023,ESSO BANGOR SSTN,Training Delivery,Food,10.26
08/01/2023,AMZNMKTPLACE,ICT,ICT Spares & Repairs,74.02
06/01/2023,EB  NFCC APPRENTICESHI,Org. Development,Conference Expenses,125
08/01/2023,ESSO BANGOR SSTN,Training Delivery,Food,19.25
05/01/2023,AA CAR CARE,Todmorden,Consumables-Veh Rep,2.99
05/01/2023,JAGUAR LAND ROVER LEED,Operations Team,Vehicle Insurance,19.99
05/01/2023,GENERAL TRAFFIC LTD,Fleet Maintenance,Dir Cost-Spare Parts,106.14
05/01/2023,DUNELM SOFTFURNISHINGS,Rawdon Day Crewing ,Furniture,-58.33
05/01/2023,AMZNMKTPLACE,ICT,ICT Spares & Repairs,104.16
05/01/2023,TOOLSTATION LTD,Wakefield District Commander,Self Help Scheme,9.98
04/01/2023,BRADFORD BOLT & NUT CO,Skelmanthorpe,Operational Equ Pch,42.58
04/01/2023,BRADFORD BOLT & NUT CO,Skelmanthorpe,Operational Equ Pch,-42.58
04/01/2023,VICTORIA THEATRE HALIF,Calderdale DFSO,Conference Expenses,"1,924.24"
04/01/2023,AMZNMKTPLACE,Stores,Admin/Office Equ Pch,24.14
04/01/2023,NORA SXS LIMITED,Operations Equipment,Operational Equ Pch,134.49
04/01/2023,AMZNMKTPLACE,Stores,Clothing,83.89
03/01/2023,MILWAUKEE POWER TOOLS,Operations Equipment,Operational Equ Pch,31.21
03/01/2023,WWW.SCREWFIX.COM,Odsal,Ad-Blue purchase,95.79
03/01/2023,CROSSROADS TRUCK BUS L,Fleet Maintenance,Dir Cost-Spare Parts,"4,070.53"
03/01/2023,WWW.SCREWFIX.COM,Odsal,Self Help Scheme,99.99
03/01/2023,WWW.CIPS.ORG,Procurement,Prof Subs Fees,223
01/01/2023,WWW.CIMAGLOBAL.COM,Finance Section,Prof Subs Fees,329
30/12/2022,WF  UK3852302094,Rawdon Day Crewing ,Furniture,75.04
30/12/2022,WF  UK3852302094,Wetherby Day Crewing,Furniture,191.46
30/12/2022,WF  UK3852302094,South Kirkby,Furniture,119.07
01/01/2023,OASISCATERINGSUPPLIES,Service Delivery Centre,Domestic Equ Purch,16.31
28/12/2022,SHELL KEIGHLEY ROAD,Fleet Maintenance,Ad-Blue purchase,22.49
29/12/2022,MEDTREE,Bradford,First Aid Equipment,56.65
28/12/2022,4X4 ACCESSORIES AND TY,Fleet Maintenance,Dir Cost-Spare Parts,52.59
28/12/2022,WWW.PARRS.CO.UK,Killingbeck,Station Development Equipment,139.99
28/12/2022,MULTIPOINTLOCKS,Operations Equipment,Operational Equ Pch,217
28/12/2022,SLINGSBY,West Yorkshire Fire & Rescue Service,Clothing,394.9
28/12/2022,THE SOCIETY OF OPE,Fleet Management,Subscriptions,126
28/12/2022,TOOLSTATION UK,Killingbeck,Operational Equ Pch,7.12
28/12/2022,SHELL WAKEFIELD ROAD,Fleet Maintenance,Ad-Blue purchase,30.01
27/02/2023,AMZNMKTPLACE,Operations Equipment,Clothing,111.84
27/02/2023,THE GOAT GAP CAFE,Bingley,Food,50.25
27/02/2023,NYA HEALTHMATIC LTD,Todmorden,Subsistence Allowncs,0.4
27/02/2023,ZETTLE_ DEVILS BRIDGE,Todmorden,Training Meals,5.8
27/02/2023,TESCO STORE,Training Delivery,Food,7.75
27/02/2023,AMZNMKTPLACE,Stores,Clothing,159.68
27/02/2023,AMZNMKTPLACE,Stores,First Aid Equipment,133.18
27/02/2023,GREGGS RIVINGTON NORTH,Training Delivery,Training Meals,12.15
27/02/2023,CO-OP GROUP 014449,Training Delivery,Food,15.5
27/02/2023,WWW.AAT-ORG.UK,Finance Section,Prof Subs Fees,228
27/02/2023,BARNSLEY VETS4PETS LTD,National Resilience,National Resilience,1333.33
27/02/2023,A S PICKERING LIMITED,Fleet Maintenance,Dir Cost-Spare Parts,1470
27/02/2023,SUMUP   JAYNES SANDWIC,Bingley,Food,25.2
28/02/2023,MAILCHIMP,Corporate Communications,Subscriptions,18.58
27/02/2023,TESCO STORES 2617,Training Delivery,Food,76.64
27/02/2023,BOTANICA KL LTD,Todmorden,Training Meals,96.25
24/02/2023,TESCO STORES 2187,Recruits,Food,20.05
26/02/2023,WM MORRISONS STORE,Leeds,Training Meals,34.38
24/02/2023,KIRKBY MOTORS,Training Delivery,Training Equ Purch,21.66
24/02/2023,CO-OP GROUP FOOD,Recruits,Food,2.35
25/02/2023,B&M 637 - BINGLEY,Bingley,Domestic Equ Purch,8
24/02/2023,PAYPAL  LNE RAILWAY,Emergency Serv. Comms. Programme Operational,Subsistence Allowncs,286.8
24/02/2023,TRAVELODGE GB0000,Emergency Serv. Comms. Programme Operational,Subsistence Allowncs,121.11
24/02/2023,ASHTEN AND MASON LTD,National Resilience,USAR Chainsaw Recert,85
24/02/2023,LNER WEB SALES,Emergency Serv. Comms. Programme Operational,Subsistence Allowncs,124
24/02/2023,LNER WEB SALES,Emergency Serv. Comms. Programme Operational,Subsistence Allowncs,31.2
26/02/2023,DUNELM LTD,Ossett,Domestic Equ Purch,76.5
25/02/2023,WILKO RETAIL LIMITED,Service Delivery Centre,Domestic Equ Purch,40.12
24/02/2023,SEDDONS PLANT AND ENGI,Fleet Maintenance,Dir Cost-Spare Parts,257.8
26/02/2023,TIMPSON LTD,Rothwell,Domestic Equ Purch,8
24/02/2023,AMZNMKTPLACE AMAZON.CO,Health & Safety,GymEquip Repair/Main,-6.66
25/02/2023,MURGATROYDS,Leeds,Training Meals,32.27
24/02/2023,COSTA COFFEE 43011604,Bradford District Commander,Food,7
23/02/2023,ASHTEN AND MASON LTD,National Resilience,USAR Chainsaw Recert,85
23/02/2023,GREGGS RIVINGTON NORTH,Training Delivery,Food,10.15
23/02/2023,CO-OP GROUP FOOD,Org. Development,Training Meals,3.6
23/02/2023,GREGGS,Leeds,Training Meals,27.95
23/02/2023,OAKLEY'S GRILL & PIZZE,Leeds,Training Meals,115.17
23/02/2023,RINGGO PARKING,Employment Services,Subsistence Allowncs,1.04
22/02/2023,ASHTEN AND MASON LTD,National Resilience,USAR Chainsaw Recert,85
22/02/2023,CO-OP GROUP 014029,National Resilience,USAR Chainsaw Recert,11
22/02/2023,AMZNMKTPLACE,Property Services,Furniture and fittings ,11.62
22/02/2023,SCREWFIX DIR LTD,Leeds,Self Help Scheme,16.24
22/02/2023,ASHTEN AND MASON LTD,National Resilience,USAR Chainsaw Recert,85
22/02/2023,EB  NFCC CULTURE CONFE,CFO/CFO'S Secretary,Conference Expenses,200
22/02/2023,COSTCO ONLINE UK LIMIT,Stores,Emergency Food,416.65
22/02/2023,AMZNMKTPLACE AMAZON.CO,Corporate Diversity,ICT Consumables,34.25
22/02/2023,CARS 2 HYUNDAI BRADFOR,Fleet Management,Rep-Ext Contractors,17.78
22/02/2023,CROSSROADS TRUCK BUS L,Fleet Maintenance,Dir Cost-Spare Parts,4309.04
23/02/2023,AMZNMKTPLACE,Wetherby,Day Crewed Accom,39.42
21/02/2023,WM MORRISONS STORE,Rothwell,Domestic Equ Purch,8
21/02/2023,TESCO STORE,Training Delivery,Food,5.25
21/02/2023,AMZNMKTPLACE AMAZON.CO,Corporate Diversity,Publty/Promtn/Media,62.5
21/02/2023,SCREWFIX DIR LTD,Calderdale District Commander,Operational Equ Pch,13.32
21/02/2023,LAND REGISTRY ECOM CCC,Fire Safety Protection,Legal Expenses,6
20/02/2023,AMZNMKTPLACE,Bradford DFSO,Fire Prevn Pblcty,299.17
20/02/2023,TESCO STORES 2204,Training Delivery,Food,22.24
20/02/2023,WM MORRISONS STORE,Training Delivery,Food,12.25
20/02/2023,BLYTH GREGGS,Cleckheaton,National Resilience,32.95
20/02/2023,THE WHARF,National Resilience,Training Meals,65.28
20/02/2023,ACCESSIBE.COM,Corporate Communications,Subscriptions,128.76
20/02/2023,CO-OP GROUP FOOD,Training Delivery,Food,31.2
20/02/2023,SUMUP   JAYNES SANDWIC,Bingley,Food,52.3
21/02/2023,AMAZON.CO.UK 130992KT4,Operations Equipment,Operational Equ Pch,73.51
19/02/2023,AMAZON.CO.UK 1318F7HV4,Operations Equipment,Operational Equ Pch,30.78
18/02/2023,SUBWAY,Leeds,Training Meals,63.63
17/02/2023,RANKIN SF CONNECT,Fleet Maintenance,Ad-Blue purchase,27.5
19/02/2023,AMAZON.CO.UK 132445HY4,Operations Equipment,Operational Equ Pch,30.78
19/02/2023,AMAZON.CO.UK 1369Y5BC4,Operations Equipment,Operational Equ Pch,30.78
19/02/2023,AMAZON.CO.UK 137H61HX4,Operations Equipment,Operational Equ Pch,30.78
19/02/2023,AMAZON.CO.UK 1374L6HH4,Operations Equipment,Operational Equ Pch,30.78
17/02/2023,SHELL BRADFORD ROAD,Operations Team,Dir Cost-Oil & Lubes,19.99
18/02/2023,BEESTON MOTOR SPAR,Fleet Maintenance,Ad-Blue purchase,31.99
19/02/2023,AMAZON.CO.UK 1334F0HG4,Calderdale District Commander,Stationery,3.57
17/02/2023,BREWERS FAYRE 41010340,Ossett,Training Meals,42.86
17/02/2023,WF  UK2592060988,Stores,Cat Gen Equ Purch,52.48
17/02/2023,EB  NFCC DRONES CONFER,Operations Team,Conference Expenses,375
19/02/2023,AMZNMKTPLACE,Leeds,Station Development Equipment,33.32
16/02/2023,FIREPROTECT,Property Services,General Rep & Maint,453.52
17/02/2023,AMZNMKTPLACE AMAZON.CO,Fire Safety Prevention,ICT Consumables,122.6
17/02/2023,SUMUP   JAYNES SANDWIC,Bingley,Training Meals,51.6
16/02/2023,HOLIDAY INN,National Resilience,Subsistence Allowncs,1512
16/02/2023,SAINSBURYS S/MKT I,Wakefield,Emergency Food,58.7
16/02/2023,WM MORRISONS STORE,Training Delivery,Training Meals,11.75
16/02/2023,WM MORRISONS STORE,Training Delivery,Food,15.86
16/02/2023,LEEDS FLEET SERVICES L,Fleet Maintenance,Consumables-Veh Rep,146
16/02/2023,SHELL INGLEBY ARNCLIFF,Bingley,Training Meals,8.33
16/02/2023,GENERATION HIRE AND SA,Silsden,General Rep & Maint,452.73
16/02/2023,RAM-MOUNT.CO.UK,Fleet Maintenance,Dir Cost-Spare Parts,105
16/02/2023,RAM-MOUNT.CO.UK,Fleet Maintenance,Dir Cost-Spare Parts,-159.18
16/02/2023,SUMUP   JAYNES SANDWIC,Bingley,Training Meals,21.42
16/02/2023,ACTIVE WINDOW FILMS,Halifax,General Rep & Maint,112.98
14/02/2023,AMZNMKTPLACE AMAZON.CO,Property Services,Furniture and fittings ,195.21
14/02/2023,WWW.ARGOS.CO.UK,Castleford,Domestic Equ Purch,28
13/02/2023,PREMIER FARNELL,Operations Equipment,Operational Equ Pch,184.7
14/02/2023,REALLY USEFUL STORGE,Stores,Cleaning Consumables,71.79
14/02/2023,CO-OP GROUP 014449,Training Delivery,Training Meals,14
14/02/2023,THE GOOD EGG,Bingley,Training Meals,29.2
14/02/2023,MKM BUILDING SUPPLIES,National Resilience,National Resilience,22.56
14/02/2023,ASHTEN AND MASON LTD,National Resilience,USAR Chainsaw Recert,85
14/02/2023,B. WHITE,Rastrick,Training Meals,51.55
14/02/2023,WWW.ALLTHINGSIC.COM,Training Delivery,Training Delivery Tn,458
14/02/2023,THE GOOD EGG,Bingley,Training Meals,17.47
14/02/2023,CO-OP GROUP 014449,Training Delivery,Food,15.25
13/02/2023,BOCONLINE.CO.UK,Operations Equipment,Operational Equ Pch,56.74
13/02/2023,WM MORRISONS STORE,Training Delivery,Food,37.94
13/02/2023,CO-OP GROUP 014449,Training Delivery,Training Meals,10.76
13/02/2023,SHELL CROSS GATES,Fleet Maintenance,Dir Cost-Oil & Lubes,28.32
13/02/2023,B. WHITE,Rastrick,Training Meals,50
13/02/2023,GIBBS AND DANDY,National Resilience,National Resilience,73.47
12/02/2023,AMZNMKTPLACE AMAZON.CO,Stanningley,Operational Equ Pch,10.41
13/02/2023,ASHTEN AND MASON LTD,National Resilience,USAR Chainsaw Recert,85
13/02/2023,CO-OP GROUP 014449,Training Delivery,Food,13.5
09/02/2023,AMZNMKTPLACE AMAZON.CO,Control,Admin/Office Equ Pch,91.64
10/02/2023,43042930 COSTA COFFEE,Bradford District Commander,Food,7.01
10/02/2023,BESTWAY WHOLESALE,National Resilience,National Resilience,89.44
10/02/2023,SHELL LEEDS,Hunslet,Vehicle Fuel,37.26
10/02/2023,SHELL LEEDS,Hunslet,Vehicle Fuel,57.4
12/02/2023,WWW.SCREWFIX.COM,Stanningley,Operational Equ Pch,16.41
09/02/2023,AMZNMKTPLACE AMAZON.CO,SIAT,Stationery,27.48
10/02/2023,DELL PRODUCTS,SIAT,Stationery,38.37
12/02/2023,AMZNMKTPLACE AMAZON.CO,Control,Admin/Office Equ Pch,45.82
10/02/2023,RAM-MOUNT.CO.UK,Fleet Maintenance,Dir Cost-Spare Parts,159.14
10/02/2023,GENERAL TRAFFIC LTD,Fleet Maintenance,Dir Cost-Spare Parts,56.57
12/02/2023,B&M RETAIL LTD,Rothwell,ICT Consumables,13.34
10/02/2023,SP DSL CLOTHING,Training Delivery,Clothing,26
12/02/2023,THE GOAT GAP CAFE,Bingley,Food,45
09/02/2023,WWW.HANGERWORLD.COM,Illingworth,Domestic Equ Purch,109.95
09/02/2023,WETHERBY WHALER,Ossett,Training Meals,64
09/02/2023,TESCO STORES 2617,Org. Development,Training Meals,5.8
09/02/2023,WESTMINSTER INSIGHT,Operations Team,Safer Communities Programme Board,247.5
09/02/2023,ARGOS LTD,Operations Equipment,Operational Equ Pch,29.98
09/02/2023,LEEDS FLEET SERVICES L,Fleet Maintenance,Consumables-Veh Rep,146
10/02/2023,AMAZON.CO.UK 1Q2X926L4,Operations Equipment,Operational Equ Pch,73.63
09/02/2023,PADDLE.NET NOTEVIBES,Grenfell Tower,Subscriptions,1000
09/02/2023,SHELL DEWSBURY ROAD,Hunslet,Vehicle Fuel,53.8
09/02/2023,SHELL DEWSBURY ROAD,Fleet Maintenance,Ad-Blue purchase,41.65
07/02/2023,PREMIER INN,CFO/CFO'S Secretary,Food,8.32
07/02/2023,PREMIER INN,Operations Team,Subsistence Allowncs,9.99
09/02/2023,B & Q 1270,Ossett,Operational Equ Pch,3.71
09/02/2023,REALLY USEFUL PROD,Wetherby Day Crewing,Furniture,152.39
09/02/2023,AMZNMKTPLACE AMAZON.CO,ICT,ICT Consumables,28.12
08/02/2023,AMZNMKTPLACE AMAZON.CO,Finance Section,Stationery,22.48
08/02/2023,AMZNMKTPLACE AMAZON.CO,Todmorden,Operational Equ Pch,9.96
08/02/2023,AMZNMKTPLACE AMAZON.CO,Todmorden,Operational Equ Pch,2.08
09/02/2023,ASK OFFICE EQUIPMENT L,Bradford District Commander,Admin/Office Equ Pch,80.53
09/02/2023,ASHTEN AND MASON LTD,National Resilience,USAR Chainsaw Recert,85
09/02/2023,AMZNMKTPLACE AMAZON.CO,Cookridge,Station Development Equipment,272
08/02/2023,MAKE MY BLINDS,Fairweather Green,Minor works ,102.58
08/02/2023,ASHTEN AND MASON LTD,National Resilience,USAR Chainsaw Recert,85
08/02/2023,AMZNMKTPLACE AMAZON.CO,SIAT,Stationery,7.48
08/02/2023,AMZNMKTPLACE AMAZON.CO,Rawdon,Training Equ Purch,44.12
08/02/2023,MIDGLEYS FISHERIES,National Resilience,Training Meals,47.35
08/02/2023,SUBWAY GUISELEY,Stanningley,Training Meals,25.52
09/02/2023,AMAZON.CO.UK 1Q1ON9MM4,Training Delivery,Training Equ Purch,93.28
07/02/2023,SCUBA DIVE STORE,Operations Equipment,Operational Equ Pch,992
07/02/2023,CITY OF YORK CNCIL MAR,CFO/CFO'S Secretary,Subsistence Allowncs,16.8
07/02/2023,SP DSL CLOTHING,Training Delivery,Clothing,86
07/02/2023,WWW.TROPICANAFITNESS.C,Stores,Emergency Food,747.23
07/02/2023,CITY OF YORK COUNCIL,Calderdale District Commander,Conference Expenses,15
07/02/2023,WM MORRISONS STORE,Training Delivery,Food,16.4
07/02/2023,CITY OF YORK CNCIL MAR,National Resilience,National Resilience,25.2
07/02/2023,NCP,Service Delivery Centre,Training Delivery Tn,24.95
07/02/2023,ASHTEN AND MASON LTD,National Resilience,USAR Chainsaw Recert,85
07/02/2023,SGS,Operations Equipment,Operational Equ Pch,950
07/02/2023,WWW.SCREWFIX.COM,Property Services,Minor works ,187.49
07/02/2023,SIRCULALTD D&I LEADERS,Corporate Diversity,Publty/Promtn/Media,797.95
06/02/2023,TESCO-STORES 6125,Training Delivery,Training Meals,11.35
06/02/2023,ASHTEN AND MASON LTD,National Resilience,USAR Chainsaw Recert,85
06/02/2023,CO-OP GROUP FOOD,Training Delivery,Food,39.59
06/02/2023,TLG THE EDUCATION CHAR,Health & Safety,Specialists Fees,41.67
04/02/2023,SCREWFIX DIR LTD,Fleet Maintenance,Ad-Blue purchase,19.16
03/02/2023,PREMIER INN,CFO/CFO'S Secretary,Conference Expenses,115.36
03/02/2023,HOME BARGAINS,Fire Investigation,Training Delivery Tn,2.89
03/02/2023,TESCO STORES 6743,Fire Investigation,Training Delivery Tn,8.83
04/02/2023,TOOLSTATION UK,Killingbeck,Operational Equ Pch,5.91
04/02/2023,TESCO STORES 5740,South Kirkby,Cat Gen Equ Purch,49.3
05/02/2023,AMZNMKTPLACE,Operations Equipment,Operational Equ Pch,233.1
02/02/2023,SUMUP   JAYNES SANDWIC,Bingley,Training Meals,52.4
02/02/2023,WM MORRISONS STORE,Training Delivery,Food,8.75
02/02/2023,43042930 COSTA COFFEE,Bradford District Commander,Food,7.01
02/02/2023,SLINGSBY,Stores,Domestic Equ Purch,227.94
02/02/2023,WF  UK3867901264,Stores,Cat Gen Equ Purch,57.45
02/02/2023,WF  UK3867901264,Leeds,Cat Gen Equ Purch,109.92
02/02/2023,WF  UK3867901264,Wetherby Day Crewing,Cat Gen Equ Purch,24.63
02/02/2023,SAN SEB COFFEE,Training Delivery,Food,6
02/02/2023,WM MORRISONS STORE,Training Delivery,Food,14.15
01/02/2023,ANCHOR PUMPS CO LTD,Property Services,Vehicle Capital ,11.95
02/02/2023,AMZNMKTPLACE,Wetherby Day Crewing,Furniture,19.92
02/02/2023,PARCELFORCE WORLDWIDE,West Yorkshire Fire & Rescue Service,Dir Cost-Spare Parts,61.02
01/02/2023,TESCO STORES 2617,Recruits,Food,108.2
01/02/2023,CO-OP GROUP FOOD,Fleet Maintenance,Dir Cost-Spare Parts,3.75
01/02/2023,KNOTT-ANHAENGER-SHOP,Property Services,Vehicle Capital ,72.5
02/02/2023,AMZNMKTPLACE,Corporate Diversity,Access to work purch,24.99
31/01/2023,ASHTEN AND MASON LTD,National Resilience,USAR Chainsaw Recert,85
01/02/2023,SQ  SHARPEN UP CAR DET,Fleet Management,Rep-Ext Contractors,70
01/02/2023,SCREWFIX DIR. LTD,Todmorden,Operational Equ Pch,2.82
01/02/2023,WOLSELEY UK,Fleet Maintenance,Dir Cost-Spare Parts,424.37
31/01/2023,CO-OP GROUP 014449,Training Delivery,Training Meals,18.85
31/01/2023,AMZNMKTPLACE,Wetherby Day Crewing,Furniture,16.66
31/01/2023,ARGOS LTD,Wetherby,Day Crewed Accom,43.16
31/01/2023,OAKLEY'S GRILL & PIZZE,Bingley,Food,27.33
31/01/2023,REGATTA,Training Delivery,Training Delivery Tn,-198.95
31/01/2023,ESE DIRECT LIMITED,Cookridge,Station Development Equipment,132.5
31/01/2023,HOTEL IBIS,National Resilience,Conference Expenses,8
31/01/2023,INDIAN CAFE RACER,National Resilience,Subsistence Allowncs,30.75
31/01/2023,SHELL MANCHESTER ROAD,Fleet Maintenance,Ad-Blue purchase,18.32
31/01/2023,TESCO STORE,Training Delivery,Food,9.45
31/01/2023,LAND REGISTRY ECOM CCC,Fire Safety Protection,Legal Expenses,3
31/01/2023,THE GOAT GAP CAFE,Bingley,Food,15.2
31/01/2023,FIREPRO,Training Delivery,Training Delivery Tn,150
31/01/2023,EB  NFCC INDIVIDUAL ME,CFO/CFO'S Secretary,Conference Expenses,315
31/01/2023,HUDDERSFIELD LAND,Fleet Maintenance,Dir Cost-Spare Parts,65.26
31/01/2023,SQ  POLICY FORESIGHT L,Local Resilience Forum,Conference Expenses,660
31/01/2023,SNOOTY FOX TAVERN,Todmorden,Training Meals,59.06
31/01/2023,INDIAN CAFE RACER,MTFA,National Resilience,30.75
31/01/2023,NYA HEALTHMATIC LTD,Todmorden,Wellbeing,0.4
31/01/2023,WM MORRISONS STORE,Wetherby,Day Crewed Accom,16.32
31/01/2023,OAKLEY'S GRILL & PIZZE,Leeds,Training Meals,107.3
31/01/2023,GREGGS SKIPTON,Leeds,Training Meals,47.5
31/01/2023,SP SEAL MEDICAL,Operations Equipment,Operational Equ Pch,1350
30/01/2023,GREGGS SKIPTON,Leeds,Training Meals,40.25
30/01/2023,CO-OP GROUP 014449,Training Delivery,Training Meals,11.05
30/01/2023,JT ATKINSON PENRITH,Water Office,Hydrants Repair,520
30/01/2023,NYA HEALTHMATIC LTD,Todmorden,Wellbeing,0.4
30/01/2023,SUMUP   JAYNES SANDWIC,Bingley,Emergency Food,21.5
30/01/2023,AO RETAIL LIMITED,Killingbeck,General Rep & Maint,1160.83
30/01/2023,SCREWFIX DIR LTD,Halifax,Self Help Scheme,5.28
30/01/2023,B & Q 1086,Odsal,Self Help Scheme,30
30/01/2023,ASHTEN AND MASON LTD,National Resilience,USAR Chainsaw Recert,85
30/01/2023,WF  UK3852309474,Rawdon Day Crewing ,Furniture,89.99
30/01/2023,WF  UK3852309474,Wetherby Day Crewing,Furniture,143.31
30/01/2023,CO-OP GROUP 014449,Training Delivery,Food,13.45
30/01/2023,OAKLEY'S GRILL & PIZZE,Leeds,Training Meals,114.5
30/01/2023,CASTLEFORD VETS4PETS L,National Resilience,National Resilience,60.18
30/01/2023,AMZNMKTPLACE AMAZON.CO,Fleet Maintenance,Stationery,7.52
30/01/2023,AMZNMKTPLACE AMAZON.CO,Health & Safety,GymEquip Repair/Main,6.66
30/01/2023,SNOOTY FOX TAVERN,Todmorden,Training Meals,60.77
30/01/2023,AMZNMKTPLACE AMAZON.CO,Killingbeck,Station Development Equipment,65.3
26/01/2023,RANKIN SF CONNECT,Fleet Maintenance,Ad-Blue purchase,27.5
27/01/2023,CROWNE PLAZA HOTELS,CFO/CFO'S Secretary,Conference Expenses,206.4
27/01/2023,ORGANISE MY CAR LTD,Property Services,Vehicle Capital ,744.83
28/01/2023,MAILCHIMP,Corporate Communications,Subscriptions,17.94
27/01/2023,BRADFORD HONDA KIA,Fleet Management,Vhcle Leas Misc Exp,97.87
27/03/2023,TOOLSTATION LTD,Fairweather Green,Furniture,16.38
27/03/2023,WM MORRISONS STORE,Fire Investigation,Food,17.01
27/03/2023,SHELL HALIFAX ROAD,Fleet Maintenance,Ad-Blue purchase,28.32
27/03/2023,TESCO STORES 2617,Training Delivery,Food,60.52
27/03/2023,ASDA  STORES 5869,Bingley,Domestic Equ Purch,34
28/03/2023,MAILCHIMP,Corporate Communications,Subscriptions,24.02
27/03/2023,AIREDALE TREE SURGEONS,Health & Safety,Wellbeing,170.07
24/03/2023,CO-OP GROUP 014449,Training Delivery,Food,5.8
23/03/2023,ZETTLE_ DEVILS BRIDGE,Training Delivery,Food,18.08
24/03/2023,ZETTLE_ DEVILS BRIDGE,Training Delivery,Food,15.56
24/03/2023,WICKES DEWSBURY,Dewsbury New,Cleaning Consumables,19.5
24/03/2023,CO-OP GROUP 108040,Training Delivery,Training Meals,12.25
23/03/2023,TRAINLINE.COM,Fire Safety Protection,Public Transport,170.06
24/03/2023,HAYMARKET MEDIA GROUP,Employment Services,Staff Advertising,625
25/03/2023,AMZNMKTPLACE AMAZON.CO,Fleet Maintenance,General Rep & Maint,12.13
23/03/2023,PREMIER INN,Fleet Maintenance,Subsistence Allowncs,-7.92
24/03/2023,HELLOPRINT UNITED KING,Fire Safety Prevention,Safer Communities Programme Board,268.83
23/03/2023,ASHTEN AND MASON LTD,National Resilience,USAR Chainsaw Recert,85
23/03/2023,CO-OP GROUP FOOD,Recruits,Food,14.45
23/03/2023,NOVOTEL HOTELS,IRMP,Vhcle Leas Misc Exp,24
23/03/2023,TESCO STORE,Training Delivery,Food,17.9
23/03/2023,CO-OP GROUP 014449,Training Delivery,Food,12.48
22/03/2023,AMZNMKTPLACE AMAZON.CO,ICT,ICT Spares & Repairs,32.39
23/03/2023,FIRST/KEOLIS TRANS,Finance Section,Public Transport,8.3
23/03/2023,RINGGO PARKING,Employment Services,Subsistence Allowncs,4.16
23/03/2023,NOVOTEL HOTELS,Operations Team,Subsistence Allowncs,12
22/03/2023,ASHTEN AND MASON LTD,National Resilience,USAR Chainsaw Recert,85
23/03/2023,GREGGS RIVINGTON NORTH,Training Delivery,Training Meals,12.85
22/03/2023,GARRARDS (HUDDERSFIELD,Huddersfield,Training Delivery Tn,30
22/03/2023,WM MORRISONS STORE,Training Delivery,Food,9.39
22/03/2023,WM MORRISONS STORE,Training Delivery,Training Meals,15.05
22/03/2023,HADFIELDS,Cleckheaton,Training Meals,61.36
22/03/2023,AMZNMKTPLACE,ICT,ICT Spares & Repairs,82.48
21/03/2023,AMZNMKTPLACE AMAZON.CO,ICT,ICT Consumables,27.7
22/03/2023,SUBWAY 27995 BUTT LN-P,National Resilience,Training Meals,101.99
23/03/2023,AMZNMKTPLACE,Fleet Management,Vhcle Leas Misc Exp,18.8
22/03/2023,AMZNMKTPLACE,Corporate Communications,ICT Consumables,6.66
22/03/2023,TRAINLINE,Fire Safety Protection,Public Transport,61.84
22/03/2023,TRAINLINE,Fire Safety Protection,Public Transport,226.21
22/03/2023,TRAINLINE.COM,Fire Safety Protection,Public Transport,236.5
22/03/2023,TRAINLINE.COM,Fire Safety Protection,Public Transport,169.14
22/03/2023,WAKEFIELD COUNCIL,Operations Team,Subsistence Allowncs,23
21/03/2023,TRAINLINE,Employment Services,Subsistence Allowncs,9.26
21/03/2023,TRAINLINE.COM,ICT,Public Transport,19.15
21/03/2023,JOHN CHARLES CENTRE FO,Training Delivery,Training Delivery Tn,48
21/03/2023,SUMUP   JAYNES SANDWIC,Bingley,Training Meals,48.6
21/03/2023,BEESTON MOTOR SPAR,Fleet Maintenance,Ad-Blue purchase,32
21/03/2023,AMZNMKTPLACE,Fire Safety Prevention,ICT Consumables,33.32
21/03/2023,AMZNMKTPLACE,Fire Safety Prevention,Safer Communities Programme Board,359.58
21/03/2023,ASHTEN AND MASON LTD,National Resilience,USAR Chainsaw Recert,85
21/03/2023,AMZNMKTPLACE,Fleet Maintenance,Cat Gen Equ Purch,37.49
20/03/2023,TVLICENSING.CO.UK,Normanton Close Call House,Subscriptions,159
21/03/2023,WWW.AONETOOLS.CO.UK,Calderdale District Commander,Operational Equ Pch,54.99
21/03/2023,AMZNMKTPLACE,Fleet Maintenance,Cat Gen Equ Purch,24.07
21/03/2023,CROSSROADS TRUCK BUS L,Fleet Maintenance,Dir Cost-Spare Parts,2867.72
21/03/2023,AMZNMKTPLACE,Fleet Maintenance,Cat Gen Equ Purch,11.66
21/03/2023,AMZNMKTPLACE,Fleet Maintenance,Cat Gen Equ Purch,4.16
21/03/2023,IN  THUNDERHEAD ENGINE,ICT,ICT Mtce & Support,744.7
21/03/2023,AMZNMKTPLACE,Fleet Maintenance,Cat Gen Equ Purch,12.07
22/03/2023,AMZNMKTPLACE,Rothwell,Cat Gen Equ Purch,24.92
21/03/2023,REMARKABLE,ICT,ICT Spares & Repairs,27.5
21/03/2023,TESCO STORES 6641,Training Delivery,Food,12
20/03/2023,AMZNMKTPLACE,ICT,ICT Spares & Repairs,14.98
20/03/2023,TESCO STORES 2204,Training Delivery,Food,22.39
20/03/2023,CO-OP GROUP FOOD,Recruits,Food,23.48
20/03/2023,WM MORRISONS STORE,Wetherby,Self Help Scheme,1.6
20/03/2023,AMZNMKTPLACE,Fire Safety Prevention,Safer Communities Programme Board,17.89
20/03/2023,REMARKABLE,ICT,ICT Spares & Repairs,249.17
20/03/2023,TIMPSON LTD,Wetherby,Day Crewed Accom,10.8
20/03/2023,TESCO STORES 5740,South Kirkby,Cleaning Consumables,12.5
20/03/2023,ACCESSIBE.COM,Corporate Communications,Subscriptions,126.8
20/03/2023,MIDGLEYS FISHERIES,Rothwell Close Call ,Food,44.79
20/03/2023,WM MORRISONS STORE,Training Delivery,Food,18.88
20/03/2023,ASHTEN AND MASON LTD,National Resilience,USAR Chainsaw Recert,85
18/03/2023,THE FRYING PAN WETHERB,Ossett,Food,25.12
17/03/2023,ASDA SUPERSTORE,Stanningley,Domestic Equ Purch,12
17/03/2023,ALDI 49 779,Fleet Maintenance,Ad-Blue purchase,56.63
20/03/2023,AMZNMKTPLACE,Control,Admin/Office Equ Pch,15.63
16/03/2023,WAKEFIELD MDC,National Resilience,Subsistence Allowncs,89.8
17/03/2023,MURCO HOLMFIRTH FILLIN,Holmfirth,Vehicle Fuel,23.33
16/03/2023,AMZNMKTPLACE AMAZON.CO,Rothwell Close Call ,Furniture,14.99
18/03/2023,AMAZON.CO.UK 1X9VQ2TV4,Rothwell Close Call ,Furniture,33.32
20/03/2023,AMAZON.CO.UK 1X1OK8124,Rothwell Close Call ,Furniture,17.5
16/03/2023,FLEET FACTORS LTD,West Yorkshire Fire & Rescue Service,Workshop Equipment,2830.2
16/03/2023,PRICEGUARD,Shipley,Domestic Equ Purch,19.99
16/03/2023,TESCO STORES 2187,Recruits,Food,31.82
16/03/2023,SHELL CROSS GATES,Fleet Maintenance,Ad-Blue purchase,34.98
16/03/2023,LEEDS FLEET SERVICES L,Fleet Maintenance,Consumables-Veh Rep,146
16/03/2023,CO-OP GROUP 014449,Training Delivery,Food,17.65
16/03/2023,AMZNMKTPLACE,Rothwell Close Call ,Furniture,69.78
17/03/2023,AMZNMKTPLACE,Rothwell Close Call ,Furniture,164.84
15/03/2023,RANKIN SF CONNECT,Fleet Maintenance,Ad-Blue purchase,55
15/03/2023,REALLY USEFUL STORGE,Stores,Furniture,64.19
15/03/2023,AMZNMKTPLACE,Fire Investigation,Cleaning Consumables,19
15/03/2023,CO-OP GROUP 014449,Training Delivery,Training Meals,12.55
15/03/2023,SP COMET ELECTRICALS,Wetherby,Cat Gen Equ Purch,111.67
15/03/2023,ASDA PETROL,Bradford District Commander,Vehicle Fuel,41.89
15/03/2023,TOOLSTATION UK,Training Delivery,Training Equ Purch,291.5
15/03/2023,A ONE TOOLS AND FIXING,Cleckheaton,Operational Equ Pch,83.99
15/03/2023,CO-OP GROUP 014449,Training Delivery,Food,18.95
15/03/2023,CO-OP GROUP 014294,Hunslet,Emergency Food,13
14/03/2023,RIVERSIDE SERVICE STAT,Fleet Maintenance,Ad-Blue purchase,12.5
15/03/2023,HYDRAINT,Fleet Maintenance,Consumables-Veh Rep,34.33
15/03/2023,ASDA STORES,Org. Development,Food,11.07
15/03/2023,NOVOTEL HOTELS,FSHQ Build Project,FSHQ Transition Costs ,1137.5
14/03/2023,AMZNMKTPLACE,Property Services,General Rep & Maint,86.56
14/03/2023,HOME BARGAINS,Stanningley,Domestic Equ Purch,6.52
14/03/2023,P SIMPSON & SONS,FSHQ Build Project,Trade Waste & Recycl,60
14/03/2023,AMAZON.CO.UK 1R8EA8IB4,Fleet Maintenance,Workshop Equipment,18.79
14/03/2023,AMZNMKTPLACE,Fleet Maintenance,Consumables-Veh Rep,19.44
14/03/2023,CHARTERED MANAGEME,Fleet Management,Subscriptions,60
14/03/2023,LIDL GB  DEWSBURY,Recruits,Food,12.52
14/03/2023,HYGIENE PRO CLEAN,Operations Equipment,Operational Equ Pch,744.5
14/03/2023,WWW.SDSWATERSPORTS.CO.,Operations Equipment,Operational Equ Pch,1752
13/03/2023,BRADFORD MET COUNCIL,#N/A,Planning/Building Reg Fees,591.26
13/03/2023,RONTEC WESTFIELD,Bradford District Commander,Vehicle Fuel,25.03
13/03/2023,WWW.SCREWFIX.COM,Hunslet,Admin/Office Equ Pch,18.32
13/03/2023,WWW.ABARIS.CO.UK,Operations Equipment,Operational Equ Pch,281.5
13/03/2023,AMZNMKTPLACE AMAZON.CO,Org. Development,Stationery,59.89
13/03/2023,AMZNMKTPLACE,Property Services,General Rep & Maint,12.49
13/03/2023,AMZNMKTPLACE,Property Services,General Rep & Maint,83.76
13/03/2023,REMARKABLE,Corporate Diversity,Access to work purch,408
13/03/2023,VIKING OFFICE UK LIMIT,ICT,ICT Spares & Repairs,52.99
10/03/2023,HIGH STREET VOUCHERS,Fire Safety Prevention,Fire Prevn Pblcty,11.5
10/03/2023,TESCO STORES 2187,Recruits,Food,32.72
10/03/2023,BUY IT DIRECT,Halifax,General Rep & Maint,175.99
10/03/2023,BLINDS 2 GO LTD,Normanton,General Rep & Maint,53.2
10/03/2023,TOOLSTATION UK,Operations Equipment,Operational Equ Pch,79.95
11/03/2023,AMZNMKTPLACE AMAZON.CO,Property Services,General Rep & Maint,5.61
10/03/2023,AMZNMKTPLACE,Huddersfield,Cat Gen Equ Purch,31.56
10/03/2023,SP PS EMERGENCY SER,Halifax,Station Development Equipment,191.09
10/03/2023,AMZNMKTPLACE AMAZON.CO,Property Services,General Rep & Maint,3.49
09/03/2023,WICKES DEWSBURY,Dewsbury New,Cleaning Consumables,18.34
09/03/2023,HOLIDAY INN AYLESB,National Resilience,Subsistence Allowncs,140
09/03/2023,TESCO STORES 2038,National Resilience,Subsistence Allowncs,41.87
09/03/2023,PLOUGH,National Resilience,Subsistence Allowncs,147.19
09/03/2023,EB  NFCC CULTURE CONFE,CFO/CFO'S Secretary,Conference Expenses,100
09/03/2023,EDMUNDSON ELECTRICAL,Calderdale District Commander,Self Help Scheme,9.92
09/03/2023,TOBY CARVERY AMESB,National Resilience,National Resilience,39.9
09/03/2023,B & Q 1086,Odsal,Self Help Scheme,38.22
09/03/2023,AO RETAIL LIMITED,Dewsbury New,General Rep & Maint,1020.08
09/03/2023,EDMUNDSON ELECTRICAL,Calderdale District Commander,Self Help Scheme,6.8
08/03/2023,CROWNE PLAZA HOTELS,CFO/CFO'S Secretary,Conference Expenses,206.4
08/03/2023,WWW.TROPICANAFITNESS.C,Stores,Emergency Food,523.91
08/03/2023,TROWELL N/E GREGGS,National Resilience,Food,20.3
08/03/2023,MARSDENS,Training Delivery,Training Delivery Tn,128
08/03/2023,AMZNMKTPLACE,ICT,ICT Spares & Repairs,91.6
08/03/2023,VISUALCRON.COM,ICT,ICT Mtce & Support,433.4
08/03/2023,DOMINO'S PIZZA,National Resilience,Subsistence Allowncs,86.62
08/03/2023,KIRBYS OF HORSFORTH,Cookridge,Training Meals,50.46
08/03/2023,WWW.SCREWFIX.COM,Cookridge,Domestic Equ Purch,38.09
08/03/2023,CO-OP GROUP FOOD,Recruits,Food,13.85
08/03/2023,M6 TOLL,National Resilience,National Resilience,8.2
08/03/2023,HOLIDAY INN AYLESB,National Resilience,Subsistence Allowncs,160
08/03/2023,TESCO STORES 2038,National Resilience,Subsistence Allowncs,66.55
08/03/2023,MCDONALDS 296,National Resilience,Subsistence Allowncs,64.37
08/03/2023,AMZNMKTPLACE,Property Services,General Rep & Maint,17.65
08/03/2023,BOOTS UK ECOMM,Operations Equipment,Operational Equ Pch,12.72
08/03/2023,MURGATROYDS,Rawdon,Training Meals,62.66
08/03/2023,JACTONE PRODUCTS LTD,Operations Equipment,Operational Equ Pch,3850
08/03/2023,SPARKPLUGS LTD,Fleet Maintenance,Dir Cost-Spare Parts,9.2
08/03/2023,AMZNMKTPLACE AMAZON.CO,Fleet Maintenance,Consumables-Veh Rep,14
08/03/2023,AMZNMKTPLACE,CFO/CFO'S Secretary,Stationery,23.98
08/03/2023,AMZNMKTPLACE,CFO/CFO'S Secretary,Stationery,6.99
08/03/2023,HELLOPRINT UNITED KING,Youth Intervention Team,Youth Training Exps,20.83
08/03/2023,MCDONALDS 1639,National Resilience,Food,3.15
07/03/2023,DM KEITH GRIMSBY,Fleet Management,Vhcle Leas Misc Exp,158.76
07/03/2023,HARVESTER AYLESBUR,National Resilience,Subsistence Allowncs,59.87
07/03/2023,SUMUP   JOS KITCHEN,Calderdale District Commander,Subsistence Allowncs,13
07/03/2023,"MOTO RUGBY, BK",Fire Safety Protection,Subsistence Allowncs,9.24
07/03/2023,GENERAL TRAFFIC LTD,Fleet Maintenance,Dir Cost-Spare Parts,43.11
07/03/2023,TRICEL GLOUCESTER LIMI,Property Services,General Rep & Maint,33.99
07/03/2023,AMZNMKTPLACE,ICT,ICT Consumables,62.05
07/03/2023,ASHTEN AND MASON LTD,National Resilience,USAR Chainsaw Recert,85
06/03/2023,THE KEY TAG SHOP,Operations Equipment,Operational Equ Pch,130.95
06/03/2023,ALDI 94 779,Recruits,Food,21.06
06/03/2023,ASHTEN AND MASON LTD,National Resilience,USAR Chainsaw Recert,85
06/03/2023,NELSON FISHERIES,Todmorden,Training Meals,36.6
06/03/2023,AMZNMKTPLACE,Operations Equipment,Operational Equ Pch,28.7
06/03/2023,TESCO STORES 2617,Recruits,Food,54.51
06/03/2023,TESCO-STORES 6125,Training Delivery,Training Meals,10.2
05/03/2023,STOCKBRIDGE ARMS FISH,Bingley,Training Meals,41.65
03/03/2023,"TYPEFORM, S.L.",Youth Intervention Team,Youth Training Exps,25
03/03/2023,P SIMPSON & SONS,FSHQ Build Project,Trade Waste & Recycl,300
04/03/2023,FRANK KEY TOOL HIRE,Halifax,Operational Equ Pch,44
03/03/2023,HELLOPRINT UNITED KING,Corporate Communications,Fire Prevn Pblcty,2325.39
03/03/2023,SCREWFIX DIR LTD,Training Delivery,Property Services Tn,20.82
05/03/2023,TESCO STORES 2290,Org. Development,Food,5.8
05/03/2023,AMZNMKTPLACE,Property Services,General Rep & Maint,53.16
02/03/2023,AMZNMKTPLACE,Corporate Communications,ICT Consumables,124.97
02/03/2023,JOHNSTONES DEC CENTRE,Training Delivery,Cat Gen Equ Purch,30.36
01/03/2023,FERRIBY SERVICE STATIO,Rastrick,Training Meals,12.47
02/03/2023,GO OUTDOORS,National Resilience,National Resilience,32
02/03/2023,AMAZON.CO.UK 1L6Z57ST4,Water Office,Hydrants Repair,42.75
02/03/2023,SCREWFIX DIR LTD,National Resilience,National Resilience,38.32
01/03/2023,AMZNMKTPLACE AMAZON.CO,Fleet Maintenance,Stationery,19.44
01/03/2023,AMZNMKTPLACE AMAZON.CO,Rastrick,Admin/Office Equ Pch,19.99
01/03/2023,AMZNMKTPLACE AMAZON.CO,Water Office,Hydrants Repair,55.42
28/02/2023,CO-OP GROUP 014449,Training Delivery,Training Meals,13.15
28/02/2023,CO-OP GROUP 014449,Training Delivery,Food,12
01/03/2023,SAINSBURYS S/MKTS,Training Delivery,Food,25.12
01/03/2023,SHELL LEEDS ROAD,Odsal,Ad-Blue purchase,36.65
02/03/2023,AMZNMKTPLACE,Corporate Communications,ICT Consumables,20.96
01/03/2023,AMZNMKTPLACE AMAZON.CO,Property Services,General Rep & Maint,336.49
01/03/2023,WWW.SCREWFIX.COM,Illingworth,General Rep & Maint,45.82
01/03/2023,ITS TURBOCHARGERS,Fleet Maintenance,Dir Cost-Spare Parts,210
01/03/2023,SCREWFIX DIR LTD,Rastrick,Cat Gen Equ Purch,83.32
01/03/2023,SAINSBURY'S S/MKT,Rastrick,Training Meals,45.6
01/03/2023,AMZNMKTPLACE AMAZON.CO,Water Office,Hydrants Repair,66.64
28/02/2023,BOTANICA KL LTD,Todmorden,Training Meals,60.85
28/02/2023,LUNESDALE BAKERY,Todmorden,Training Meals,41.35
28/02/2023,LUNESDALE BAKERY,Todmorden,Training Meals,3.15
28/02/2023,NYA HEALTHMATIC LTD,Todmorden,Wellbeing,0.4
28/02/2023,NYA HEALTHMATIC LTD,Todmorden,Wellbeing,0.4
28/02/2023,SUMUP   JAYNES SANDWIC,Bingley,Food,25.2
28/02/2023,AMZNMKTPLACE,Stores,Clothing,236.16
28/02/2023,AMZNMKTPLACE,Stores,Cleaning Consumables,122.8
28/02/2023,GOVERNMENT EVENTS,Training Delivery,Training Delivery Tn,474
28/02/2023,ICOM  UK  LIMITED,Operations Equipment,Operational Equ Pch,26.86
28/02/2023,THE GOAT GAP CAFE,Bingley,Food,51.75
28/02/2023,NYA HEALTHMATIC LTD,Todmorden,Wellbeing,0.4
,,,,"94,584.54"
